Cogmind - Beta 16 @@@ ROGUE MODE // 2025.12.21 @ 16:45:02 Player: Oneirical Result: Destroyed by P2-O1E(R) with Subdweller Laser Performance ------------- Evolutions (0) 0 Regions Visited (2) 400 Robots Destroyed (19) 95 Value Destroyed (565) 565 Prototype IDs (0) 0 Alien Tech Used (0) 0 Bonus (0) 0 TOTAL SCORE: 1060 Bonus ------- None Cogmind --------- Core Integrity 0/250 Matter 177/300 Energy 181/200 System Corruption 0% Temperature Cool (6) Movement Rolling (110) Location -10/Subcaves Parts ------- > --- POWER (1) -------- Subdweller Power Source > --- PROPULSION (2) --- Subdweller Monowheel Subdweller Monowheel > --- UTILITY (2) ------ Small Storage Unit Seismic Detector > --- WEAPON (2) ------- Subdweller Laser Light Assault Rifle > --- INVENTORY (8) ---- Aluminum Leg Subdweller Optics Scrap Shield Grenade Launcher Mining Laser Peak State ------------ > --- POWER ------------ Subdweller Power Source > --- PROPULSION ------- Subdweller Monowheel Subdweller Monowheel > --- UTILITY ---------- Small Storage Unit Seismic Detector > --- WEAPON ----------- Subdweller Laser Light Assault Rifle > --- INVENTORY -------- Aluminum Leg Scrap Shield Grenade Launcher Mining Laser [Rating: 11] Favorites ----------- Power Light Ion Engine Engine Light Ion Engine Propulsion Aluminum Leg Leg Aluminum Leg Wheel Subdweller Monowheel Utility Small Storage Unit Device Seismic Detector Storage Small Storage Unit Weapon Small Laser Energy Gun Small Laser Ballistic Gun Assault Rifle Launcher Grenade Launcher Special Weapon Mining Laser Build | -11 -10 -10 ------- Run | Yrd Mat Sub Slots Evolved . | . . . Power . | . . . Propulsion . | . . . Utility . | . . . Weapon . | . . . Parts Attached 19 | 7 2 10 Power 4 | 1 . 3 Engine 4 | 1 . 3 Core . | . . . Reactor . | . . . Propulsion 5 | 2 . 3 Treads . | . . . Leg 3 | 2 . 1 Wheel 2 | . . 2 Hover . | . . . Flight . | . . . Utility 2 | 2 . . Device 1 | 1 . . Storage 1 | 1 . . Processor . | . . . Hackware . | . . . Protection . | . . . Artifact . | . . . Weapon 8 | 2 2 4 Energy Gun 3 | 1 . 2 Energy Cannon . | . . . Ballistic Gun 2 | 1 1 . Ballistic Cannon . | . . . Launcher 2 | . . 2 Special Weapon 1 | . 1 . Impact Weapon . | . . . Slashing Weapon . | . . . Piercing Weapon . | . . . Special Melee Weapon . | . . . Unidentified Prototypes . | . . . Parts Lost 7 | . . 7 Power 2 | . . 2 Propulsion 2 | . . 2 Utility . | . . . Weapon 3 | . . 3 Highest Loss Streak 4 | . . 4 To Critical Strikes . | . . . Average Backups 5 | . 5 5 Power . | . . . Propulsion . | . . . Utility . | . . 1 Weapon 3 | . 3 3 Tool/Special . | . . . Unused Backups 2 | . . 2 Power . | . . . Propulsion . | . . . Utility 2 | . . 2 Weapon . | . . . Tool/Special . | . . . Average Slot Usage (%) 98 | . 100 95 Engine 13 | . 14 13 Leg 24 | . 28 16 Wheel 2 | . . 8 Device 14 | . 14 14 Storage 14 | . 14 14 Energy Gun 12 | . 14 7 Ballistic Gun 12 | . 12 10 Launcher 2 | . . 8 Special Weapon 1 | . 1 . Peak Build Rating 11 | 7 7 11 Average Rating 7 | 5 7 8 On Entrance 4 | . 7 7 Avg Prop Armor Cover (%) 6 | . . 6 Naked Turns . | . . . Heaviest Build 17 | 11 12 17 Greatest Support 40 | 20 20 40 Greatest Overweight (x) 1 | . . 1 Average Overweight (x) . | . . . Largest Inventory Capacity 8 | 8 8 8 Average Capacity 7 | 7 8 8 Most Carried 8 | 1 6 8 Average Carried 5 | . 5 6 Final Capacity 8 | 8 8 8 Final Carried 6 | 1 6 6 Class Distribution -------------------- 90% | Mutant 9% | Scavenger-Mutant Dominant Class ---------------- Mutant | -10/Materials Mutant | -10/Subcaves Resources | -11 -10 -10 ----------- Run | Yrd Mat Sub Matter Collected 491 | 163 141 187 Remotely . | . . . Salvage Created 481 | 21 205 255 Parts 43 | 5 17 21 Haulers Intercepted . | . . . Recyclers Shooed . | . . . Parts Field Recycled . | . . . Retrieved Matter . | . . . Parts Self-Destructed . | . . . Prevented . | . . . Parts Restored . | . . . Kills | -11 -10 -10 ------- Run | Yrd Mat Sub Combat Hostiles Destroyed 17 | . 7 10 Guns 10 | . 7 3 AOE 7 | . . 7 Classes Destroyed 5 | 1 3 1 Tunneler 1 | 1 . . Operator 1 | . 1 . Swarmer 4 | . 4 . Grunt 3 | . 3 . Subdweller 10 | . . 10 Best Kill Streak 7 | 1 2 7 Combat Bots Only 7 | . 2 7 Max Kills in Single Turn 3 | 1 1 3 Gunslinging . | . . . Exploded 3 | . . 3 Melee . | . . . Uniques/NPCs Destroyed . | . . . Combat | -11 -10 -10 -------- Run | Yrd Mat Sub Hostile Shots Fired 69 | . 29 40 Missed 18 | . 11 7 Hits 51 | . 18 33 Projectile 51 | . 18 33 Critical Strikes 1 | . . 1 Damage Taken 1040 | . 165 875 Core 250 | . 29 221 Absorbed by Shields . | . . . Core Remaining (%) 100 | 100 . . Volleys Fired 53 | 1 20 32 Largest 2 | 2 2 2 Hottest 100 | 60 100 80 Shots Fired 93 | 2 37 54 Gun 81 | 2 35 44 Cannon . | . . . Launcher 10 | . . 10 Special 2 | . 2 . Kinetic 47 | 1 18 28 Thermal 36 | 1 19 16 Explosive 10 | . . 10 Electromagnetic . | . . . Robot Hit Streak 20 | 1 5 20 Robot Miss Streak 2 | . 2 1 Penetration Max . | . . . Secondary Targets . | . . . Shots Hit Robots 71 | 1 22 48 Core Hits 38 | 1 12 25 Critical Kills 1 | . . 1 Critical Parts Destroyed . | . . . Critical Strikes 1 | . . 1 Destroy 1 | . . 1 Melee Attacks . | . . . Impact . | . . . Slashing . | . . . Piercing . | . . . Sneak Attacks . | . . . Combat Hostiles . | . . . Follow-up Attacks . | . . . Damage Inflicted 1662 | 11 248 1403 Guns 823 | 11 248 564 Cannons . | . . . Explosions 839 | . . 839 Melee . | . . . Ramming . | . . . Kinetic 348 | . 93 255 Thermal 475 | 11 155 309 Explosive 839 | . . 839 Electromagnetic . | . . . Impact . | . . . Slashing . | . . . Piercing . | . . . Highest Corruption . | . . . Average Corruption . | . . . Corruption Purged . | . . . Corruption Blocked . | . . . Overload Shots . | . . . Overflow Damage . | . . . Projectiles . | . . . Explosions . | . . . Melee . | . . . Knockbacks . | . . . Impact . | . . . Kinetic . | . . . Secondary . | . . . Self-Inflicted Damage . | . . . Shots . | . . . Rammed . | . . . Targets Rammed . | . . . Kicked . | . . . Crushed . | . . . Highest Temperature 40 | 20 40 6 Average Temperature 14 | 15 15 6 Received Heat Transfer 186 | . 42 144 Siege Activations . | . . . Martial Activations . | . . . Shielding Activations . | . . . Robots Disrupted . | . . . Combat Hostiles . | . . . Robots Corrupted . | . . . Combat Hostiles . | . . . Parts Fried . | . . . Impact Corruptions . | . . . Robots Melted . | . . . Combat Hostiles . | . . . Parts Melted . | . . . Heat Transferred 750 | 25 350 375 Parts Sabotaged . | . . . Parts Stolen . | . . . Parts Stripped . | . . . Power Chain Reactions . | . . . Alert | -11 -10 -10 ------- Run | Yrd Mat Sub Maximum Alert Level . | . . . Low Security (%) 100 | 100 100 . Level 1 . | . . . Level 2 . | . . . Level 3 . | . . . Level 4 . | . . . Level 5 . | . . . High Security . | . . . Max Security . | . . . Peak Influence 94 | 5 94 . Initial . | . . . Average 18 | 1 19 . Influence Increases 240 | 5 235 . Destroy 0b10 Robot/C 140 | . 140 . Destroy 0b10 Robot/NC 10 | 5 5 . Destroy Leader 30 | . 30 . Successful Hack 13 | . 13 . Destroy Structure 2 | . 2 . Lose Combat Pursuer 45 | . 45 . Influence Decreases 240 | 5 175 60 Entered New Map 29 | . . 29 Time Decay 211 | 5 175 31 Squads Dispatched 2 | . 2 . Investigation 1 | . 1 . Extermination . | . . . Reinforcement 1 | . 1 . Assault . | . . . Garrison . | . . . Intercept . | . . . Searches Triggered . | . . . Construction Impeded . | . . . Haulers Reinforced . | . . . Active Scanning Responses . | . . . Cargo Convoy Interrupts . | . . . Stealth | -11 -10 -10 --------- Run | Yrd Mat Sub Distress Signals 2 | . 2 . Communications Jammed . | . . . Distress Signals . | . . . Times Spotted 24 | . 14 10 Peak Tracking Total 6 | . 6 2 Tactical Retreats 2 | . 2 . Traps | -11 -10 -10 ------- Run | Yrd Mat Sub Traps Triggered 6 | . 1 5 Indirectly . | . . . Trap Hack Attempts . | . . . Triggered . | . . . Disarmed . | . . . Reprogrammed . | . . . Reused . | . . . Traps Extracted . | . . . Installed . | . . . Triggered . | . . . Machines | -11 -10 -10 ---------- Run | Yrd Mat Sub Machines Disabled . | . . . Max in Single Turn . | . . . Machines Repaired . | . . . Machines Dismantled . | . . . Machines Sabotaged . | . . . Overloaded Fab Kills . | . . . Hacking | -11 -10 -10 --------- Run | Yrd Mat Sub Machines Accessed 3 | . 3 . Terminals 3 | . 3 . Fabricators . | . . . Repair Stations . | . . . Recycling Units . | . . . Scanalyzers . | . . . Garrison Access . | . . . Total Hacks 10 | . 10 . Successful 3 | . 3 . Failed 7 | . 7 . Catastrophic . | . . . Database Lockouts . | . . . Manual 4 | . 4 . Terminals 10 | . 10 . Fabricators . | . . . Repair Stations . | . . . Recycling Units . | . . . Scanalyzers . | . . . Garrison Access . | . . . Terminal Hacks 2 | . 2 . Security Status 1 | . 1 . Zone Layout 1 | . 1 . Fabricator Hacks . | . . . Repair Station Hacks . | . . . Recycling Unit Hacks . | . . . Scanalyzer . | . . . Garrison Access Hacks . | . . . Unauthorized Hacks 1 | . 1 . Terminals 1 | . 1 . Assimilate 1 | . 1 . Fabricators . | . . . Repair Stations . | . . . Recycling Units . | . . . Scanalyzers . | . . . Garrison Access . | . . . Data Cores Recovered 1 | . 1 . Used . | . . . Hacking Detections 3 | . 3 . Full Trace Events . | . . . Feedback Events . | . . . Feedback Blocked . | . . . Robot Schematics Acquired . | . . . Robots Built . | . . . Authchips . | . . . Time . | . . . Total Robot Build Rating . | . . . Part Schematics Acquired . | . . . Parts Built . | . . . Authchips . | . . . Time . | . . . Total Part Build Rating . | . . . Part Studies Acquired . | . . . Parts Repaired . | . . . Time . | . . . Parts Recycled . | . . . Recycled Matter . | . . . Retrieved Matter . | . . . Retrieved Components . | . . . Parts Scanalyzed . | . . . Part Schematics Acquired . | . . . Parts Damaged . | . . . Bothacking | -11 -10 -10 ------------ Run | Yrd Mat Sub Used RIF Installer . | . . . Robots Hacked . | . . . Non-combat . | . . . Combat . | . . . Robot Hacks Applied . | . . . Relay Couplers Released . | . . . Fabnet Peak Effective % . | . . . Robots Rewired . | . . . Allies Hacked . | . . . Hacks Repelled . | . . . Allies | -11 -10 -10 -------- Run | Yrd Mat Sub Total Allies . | . . . Largest Group . | . . . Highest-Rated Group . | . . . Highest-Rated Ally . | . . . Total Orders . | . . . Ally Attacks . | . . . Total Damage . | . . . Kills . | . . . Allies Corrupted . | . . . Allies Melted . | . . . Intel | -11 -10 -10 ------- Run | Yrd Mat Sub Active Infowar (turns) 2113 | 10 1498 605 Seismic 2113 | 10 1498 605 Robot Analysis Total . | . . . Derelict Logs Recovered . | . . . Drone Launches . | . . . Drone Recoveries . | . . . Exploration | -11 -10 -10 ------------- Run | Yrd Mat Sub Turns Passed 2163 | 60 1498 605 Spaces Moved 697 | 41 279 377 Core 4 | 4 . . Treads . | . . . Legs 548 | 37 279 232 Wheels 145 | . . 145 Hover . | . . . Flight . | . . . Fastest Speed 50 | 50 120 110 Average Speed 120 | 113 120 122 Slowest Speed 190 | 120 120 190 Overloaded Moves . | . . . Propulsion Burnouts . | . . . Robots Hopped . | . . . Potential Cave-ins . | . . . Cave-ins Triggered . | . . . Exploration Rate (%) 26 | 4 49 26 Regions Visited 2 Branch Regions 1 Pre-discovered Areas . | . . . Known Exits Taken . | . . . Unknown Exits Taken 2 | 1 1 . Scrap Searched . | . . . Spaces Dug 1 | . 1 . Terrain Destroyed 55 | . 2 53 Melee . | . . . Projectile 2 | . 2 . AOE 53 | . . 53 Terrain Rammed . | . . . Walls Destroyed . | . . . Machines Disabled . | . . . Actions | -11 -10 -10 --------- Run | Yrd Mat Sub Total 1908 | 49 1400 459 Wait 1128 | . 1096 32 Move 695 | 40 278 377 Hop . | . . . Pick Up 7 | 1 4 2 Fast Attach 10 | 7 . 3 Attach 4 | . . 4 Detach . | . . . Swap 10 | . 2 8 Drop 1 | . . 1 Fire 53 | 1 20 32 Melee . | . . . Ram . | . . . Kick . | . . . Crush . | . . . Escape Stasis . | . . . Rewire . | . . . Trap . | . . . Miscellaneous . | . . . Route ------- -11/Scrapyard -10/Materials (discovered 3 exits: [*Mat x2] / [*Sub]) -10/Subcaves History --------- Turn | Location | Event 21 | -11/Scrapyard | Discovered new exit (range 15) 61 | -11/Scrapyard | Entered Materials 308 | -10/Materials | Build established: Mutant 425 | -10/Materials | Discovered new exit (range 14) 1435 | -10/Materials | Discovered new exit (range 9) 1554 | -10/Materials | Discovered new exit (range 4) 1559 | -10/Materials | Entered Subcaves 1704 | -10/Subcaves | Destroyed 7 combat bots 1951 | -10/Subcaves | Core integrity fell below 50% 1985 | -10/Subcaves | Lost 4 parts (1p1n2w) 2159 | -10/Subcaves | Core integrity fell below 20% 2164 | -10/Subcaves | Destroyed by P2-O1E(R) with Subdweller Laser Last Messages --------------- 01829_ Subatomizers dissect the Disposable Heat Sink, destroying it. 01927_ Aluminum Leg destroyed. 01928_ 7V-X2J(R) suffers critical hit (Destroy). 01928_ 7V-X2J(R) destroyed. 01933_ Lgt. Ion Engine destroyed. 01935_ 1W-H8Z(R) affixes Scrap Shield Fragment to Scrap Shield. 01938_ Sub. Laser destroyed. 01954_ Assault Rifle destroyed. 01961_ 1W-H8Z(R) destroyed. 01963_ Acquired 38 matter. 01965_ Acquired Sub. Laser. 01969_ Acquired Sub. Power Source. 01974_ Acquired Sub. Monowheel. 01975_ Acquired 55 matter. 01983_ Acquired Sub. Optics. 01988_ Acquired 9 matter. 02114_ Sub. Monowheel shoots sparks and powers down. Map ----- +----------------------------------------------------+ | ?????????????????????????????????????????????????? | | ?????????????????????????????????????????????????? | | ?????????????????????????????????????????????????? | | ?????????????????????????????????????????????????? | | ?????????????????????????????????????????????????? | | ?????????????????????????????????????????????????? | | ?????????????????????????????????????????????????? | | ?????????????????????????????????????????????????? | | ?????????????????????????????????????????????????? | | ?????????????????????????????????????????????????? | | ?????????????????????????????????????????????????? | | ?????????????????????????????????????????????????? | | #????????????????????????????????????????????????? | | ###??????????????????????????????????????????????? | | ##?####????#####???????????????????????????????? | | #?# ##??## ##??????????????????????????????? | | %##?# ##?? #??????????????????????????????? | | #??# #?? ###????????????????????????????? | | ##### #??# #????????????????????????????? | | ### #??# #????????????????????????????? | | #?# #???# #????????????????????????????? | | ??# ##???# #????????????????????????????? | | ?## #????# ######????????????????????????? | | ?# ##??## ### ##???????????????????????? | | ## # #### #?# ##??????????????????????? | | # ## ## ### @##?????????????????????? | | ## ### """??????????????? | | ## ## R """??????????????? | | # # ## #### R ##"??????????????? | | ###### ##??# " #????????????????? | | ?????# ##???## #### "" "#???????????????? | | ?????# #?????# ##??# "## #???????????????? | | ????## ##???# #???# ""#?" ##???????????????? | | ????# #?? #???##""#??"" #???????????????? | | ????# ###? #?????###??""""#??????????????? | | ????# ##?? ##?????????????""??????????????? | | ????# ##?# #####??????????????????????????????? | | ????## #?###???????????????????????????????????? | | ?????## #???????????????????????????????????????? | | ??????####???????????????????????????????????????? | | ?????????????????????????????????????????????????? | | ?????????????????????????????????????????????????? | | ?????????????????????????????????????????????????? | | ?????????????????????????????????????????????????? | | ?????????????????????????????????????????????????? | | ?????????????????????????????????????????????????? | | ?????????????????????????????????????????????????? | | ?????????????????????????????????????????????????? | | ?????????????????????????????????????????????????? | | ?????????????????????????????????????????????????? | +----------------------------------------------------+ Best States ------------- Heat Dissipation 25 Energy Generation 15 Energy Capacity 200 Matter Stores 271 Matter Capacity 300 Sight Range 16 Terrain Scan Density 10 Evasion (%) 55 Item Schematics ----------------- None Robot Schematics ------------------ None Fabricated ------------ Nothing Repaired ---------- Nothing Studied --------- None Alien Tech Used ----------------- None Achievements -------------- None Challenges ------------ None Game ------ Seed AlphaRecoilPenetrator Manual? 0 Play Time 00:11:17 Cumulative 43.1 hours Start 2025.12.21 @ 16:33:57 End 2025.12.21 @ 16:45:02 Sessions 1 Manual Loads 0 Difficulty Rogue Special Mode None Game No. 35 Rogue 33 Adventurer 2 Explorer 0 Win Type - Total 1 Types 0/0/0/1/0/0/0/0/0/0 Lore% 31 Gallery% 49 Achievement% 41 Wizard Run 0 Options --------- Layout 2 ASCII 0 Keyboard 1 Movement Numpad Keybinds 0 Fullscreen 1 Font 32/SmallcapsGlow Map View 50x49 Zoom Use 0% Tactical HUD 1 Map Filters NONE Filters NONE Steam 0 RUN: 62baf16f-d899-44de-a449-a76b4edd0e5b